bitfinex-derivatives/quotes_SOLF0:USTF0_20250712
["timestamp","ask_amount","ask_price","bid_price","bid_amount"]
[1752288837247,3.58,163.08,163.04,5.15256553]
[1752288837451,3.58,163.08,163.07,9.4996]
[1752288838148,3.58,163.08,163.07,3.37]
[1752288839550,3.58,163.08,163.07,9.4996]
[1752288840046,3.58,163.08,163.07,3.37]
[1752288840942,3.58,163.08,163.07,9.4996]
[1752288841143,3.58,163.08,163.07,3.37]
[1752288843248,3.58,163.08,163.03,3.37]
[1752288844051,3.58,163.08,163.04,3.37]
[1752288844646,6.1297,163.07,163.04,3.37]
[1752288844846,3.58,163.06,163.04,3.37]
[1752288845147,3.58,163.06,163.0,3.37]
[1752288845544,6.131,163.04,163.01,6.1317]
[1752288845846,3.58,163.06,163.01,9.5017]
[1752288846247,3.58,163.08,163.0,6.132]
[1752288846448,3.58,163.04,163.0,9.502]
[1752288846753,3.58,163.04,163.01,9.5016]
[1752288846961,3.58,163.04,163.02,3.37]
[1752288847252,3.58,163.03,162.97,3.79403009]
[1752288847454,3.58,163.03,163.02,6.1314]
[1752288847649,3.58,163.04,162.99,3.79403009]
[1752288848154,3.58,163.04,163.0,3.37]
[1752288848354,3.58,163.06,163.03,3.37]
[1752288849150,3.58,163.06,163.04,6.1307]
[1752288849355,3.58,163.06,163.05,3.37]
[1752288850553,3.58,163.06,163.04,3.37]
[1752288850751,180.52,163.06,163.04,3.37]
[1752288850950,3.58,163.05,163.04,3.37]
[1752288852645,180.5,163.05,163.04,3.37]
[1752288854651,180.46,163.05,163.04,3.37]
[1752288858767,180.46,163.05,163.03,6.131]
[1752288858959,3.61,163.04,163.03,3.4]
[1752288860966,3.61,163.04,163.02,6.1314]
[1752288861164,3.61,163.04,163.03,3.4]
[1752288862158,3.61,163.02,162.98,3.4]
[1752288862362,180.39,163.01,162.98,3.4]
[1752288862760,176.78,163.01,162.98,3.4]
[1752288863268,3.61,163.0,162.96,3.4]
[1752288863565,180.39,163.01,162.96,3.4]
[1752288863956,3.61,163.0,162.96,3.4]
[1752288864565,3.61,163.0,162.99,6.1326]
[1752288864770,180.39,163.01,162.99,9.5326]
[1752288865065,180.39,163.01,163.0,3.4]
[1752288865566,3.61,163.0,162.99,3.4]
[1752288870269,3.61,163.0,162.96,6.1336]
[1752288870570,3.61,163.0,162.95,3.4]
[1752288870772,3.61,163.0,162.96,3.4]
[1752288871570,3.61,162.99,162.96,3.4]
[1752288871966,3.61,162.99,162.96,6.1335]
[1752288872166,3.61,162.99,162.97,3.4]
[1752288872370,3.61,163.0,162.97,3.4]
[1752288872572,9.7425,163.0,162.97,3.4]
[1752288872771,3.61,162.99,162.97,3.4]
[1752288874281,3.61,162.99,162.98,3.4]
[1752288875277,9.7426,162.99,162.98,3.4]
[1752288875878,3.61,162.99,162.98,3.4]
[1752288878376,3.61,162.99,162.97,3.4]
[1752288879874,3.61,162.98,162.97,3.4]
[1752288880680,3.61,162.98,162.97,9.5333]
[1752288881182,3.61,163.03,162.99,3.4]
[1752288881478,3.61,163.02,162.99,3.4]
[1752288881673,3.61,163.01,162.99,3.4]
[1752288881976,3.61,163.01,163.0,3.4]
[1752288886184,9.4418,163.01,163.0,3.4]
[1752288886984,9.4418,163.01,162.98,6.1328]
[1752288887183,3.31,162.99,162.96,3.42]
[1752288887982,3.31,162.99,162.96,6.1335]
[1752288888183,3.31,162.99,162.98,3.42]
[1752288889689,9.4426,162.99,162.98,3.42]
[1752288889988,9.4426,162.99,162.97,3.42]
[1752288890183,3.31,162.98,162.95,11.2797665]
[1752288890379,3.31,162.98,162.96,3.42]
[1752288890380,3.31,162.97,162.96,3.42]
[1752288895285,3.31,162.97,162.95,3.42]
[1752288895484,3.31,162.97,162.94,3.42]
[1752288895786,9.4436,162.97,162.93,11.2803665]
[1752288895984,9.4436,162.97,162.94,3.42]
[1752288896186,3.31,162.96,162.94,3.42]
[1752288897086,6.1341,162.95,162.94,3.42]
[1752288897286,3.31,162.95,162.92,3.42]
[1752288897987,177.54,162.96,162.89,5.1457665]
[1752288897988,3.31,162.94,162.89,5.1457665]
[1752288898388,3.7969296,162.92,162.88,3.42]
[1752288898692,3.31,162.91,162.88,3.42]
[1752288899094,3.31,162.89,162.87,3.42]
[1752288899293,3.31,162.89,162.84,5.1457665]
[1752288899494,3.31,162.89,162.86,3.42]
[1752288899693,3.31,162.87,162.86,3.42]
[1752288900493,3.31,162.89,162.86,3.42]
[1752288900790,177.78,162.91,162.86,3.42]
[1752288900996,3.31,162.9,162.88,3.42]
[1752288901193,183.9156,162.91,162.88,3.42]
[1752288901495,3.31,162.89,162.84,5.1457665]
[1752288901695,3.31,162.89,162.82,5.1457665]
[1752288901904,3.31,162.89,162.83,3.42]
[1752288902899,3.31,162.86,162.83,3.42]
[1752288904104,3.31,162.86,162.84,6.1382]
[1752288904300,3.31,162.9,162.82,3.42]
[1752288904503,3.31,162.88,162.82,3.42]
[1752288904800,3.31,162.88,162.82,3.79971043]
[1752288905102,3.31,162.91,162.85,3.42]
[1752288905301,3.31,162.91,162.87,6.1368]
[1752288905707,3.31,162.91,162.89,3.42]
[1752288906006,9.446,162.9,162.89,3.42]
[1752288906507,9.446,162.9,162.86,6.1372]
[1752288906803,6.136,162.9,162.88,3.42]
[1752288906999,6.1357,162.91,162.88,3.42]
[1752288907298,6.1357,162.91,162.87,6.1371]
[1752288907505,3.31,162.9,162.89,3.42]
[1752288910497,3.31,162.91,162.89,3.42]
[1752288911006,3.31,162.91,162.9,3.42]
[1752288911397,177.72,162.93,162.9,3.42]
[1752288911597,3.31,162.92,162.9,3.42]
[1752288913703,183.8549,162.93,162.9,3.42]
[1752288913906,3.31,162.91,162.9,3.42]
[1752288914108,3.31,162.93,162.9,3.42]
[1752288915504,3.31,162.93,162.9,9.5557]
[1752288915809,3.31,162.93,162.91,3.59]
[1752288916303,3.31,162.93,162.91,9.7255]
[1752288916605,3.31,162.93,162.92,3.59]
[1752288917010,177.66,162.94,162.92,3.59]
[1752288917205,181.1,162.94,162.92,3.59]
[1752288919006,3.44,162.94,162.92,3.59]
[1752288919206,3.44,162.94,162.93,3.59]
[1752288920009,177.6,162.95,162.94,3.59]
[1752288921211,177.6,162.95,162.94,9.7245]
[1752288921413,3.44,162.96,162.95,3.59]
[1752288921912,3.44,162.97,162.95,3.59]
[1752288922811,3.44,162.97,162.95,6.1341]
[1752288923012,530.2,163.05,162.96,3.79893435]
[1752288923211,3.44,163.01,162.97,3.59]
[1752288923411,177.58,163.02,162.99,3.59]
[1752288923712,181.02,163.02,162.99,3.59]
[1752288923914,181.02,163.02,162.99,9.7223]
[1752288924112,181.02,163.02,162.98,3.79893435]
[1752288924314,181.02,163.02,163.0,3.59]
[1752288928016,3.44,163.01,162.99,0.03894501]
[1752288928611,6.1322,163.0,162.99,0.03894501]
[1752288928913,9.5722,163.0,162.99,0.03894501]
[1752288933220,3.44,162.96,162.95,3.59]
[1752288933417,3.44,162.96,162.92,3.59]
[1752288934221,9.574,162.96,162.92,9.7251]
[1752288934419,3.44,162.95,162.94,3.59]
[1752288934926,9.5741,162.95,162.94,3.59]
[1752288935314,0.04337153,162.96,162.94,3.59]
[1752288935522,3.48337153,162.96,162.94,3.59]
[1752288936825,9.61707153,162.96,162.94,3.59]
[1752288937020,3.44,162.95,162.94,3.59]
[1752288938915,0.04337153,162.96,162.94,3.59]
[1752288939424,3.48337153,162.96,162.94,3.59]
[1752288942728,3.48337153,162.96,162.94,9.7244]
[1752288942930,3.48337153,162.96,162.95,3.59]
[1752288944725,0.04337153,162.96,162.95,3.59]
[1752288945932,0.04337153,162.96,162.95,9.7241]
[1752288947330,3.45,163.0,162.99,6.1326]
[1752288947534,3.45,163.0,162.99,9.5426]
[1752288948035,180.79,163.01,163.0,9.5422]
[1752288948631,3.45,163.01,163.0,9.5422]
[1752288949124,3.45,163.01,163.0,3.41]
[1752288954134,3.45,163.02,163.01,3.41]
[1752288955135,180.83,163.04,162.98,3.41]
[1752288955637,177.38,163.04,163.01,6.1316]
[1752288955935,3.45,163.03,163.02,3.41]
[1752288956127,180.83,163.04,163.02,9.5412]
[1752288956525,180.83,163.04,163.03,3.41]
[1752288957530,3.45,163.04,163.03,3.41]
[1752288957832,6.1301,163.06,163.03,3.41]
[1752288957833,3.45,163.05,163.04,3.41]
[1752288960634,3.45,163.05,163.0,3.41]
[1752288961735,6.131,163.04,163.0,6.132]
[1752288961929,3.45,163.03,163.01,3.41]
[1752288962431,3.45,163.03,163.02,3.41]
[1752288965540,3.45,163.03,162.97,5.14297738]
[1752288965740,3.45,163.03,163.01,3.41]
[1752288966341,3.45,163.03,163.01,9.5417]
[1752288966736,3.45,163.03,163.02,3.41]
[1752288967938,3.45,163.03,163.02,9.5415]
[1752288968239,3.45,163.03,163.02,3.41]
[1752288969143,3.45,163.03,162.98,3.41]
[1752288969642,6.1316,163.02,162.99,6.1324]
[1752288969839,6.1316,163.02,162.99,9.5424]
[1752288969840,3.45,163.01,162.99,9.5424]
[1752288970342,3.45,163.01,162.99,6.1324]
[1752288970544,3.45,163.01,163.0,3.41]
[1752288971436,3.45,163.01,162.96,5.14297738]
[1752288971437,3.45,163.01,162.98,3.41]
[1752288971944,3.45,162.99,162.98,3.41]
[1752288972139,3.45,162.99,162.96,6.1335]
[1752288972344,3.45,162.99,162.97,3.41]
[1752288972845,3.7932097,163.03,162.98,3.41]
[1752288973242,3.45,163.02,162.98,3.41]
[1752288973435,3.45,163.0,162.99,3.41]
[1752288974945,3.45,163.0,162.98,6.1327]
[1752288975147,9.5823,163.0,162.98,3.3]
[1752288975346,3.38,162.99,162.98,3.3]
[1752288976047,3.38,162.99,162.98,9.433]
[1752288977647,3.38,162.99,162.98,3.3]
[1752288979448,3.38,162.99,162.98,9.433]
[1752288979644,6.132,163.01,162.98,6.133]
[1752288979949,3.38,163.0,162.99,3.3]
[1752288981351,9.5122,163.0,162.99,3.3]
[1752288983850,3.38,162.99,162.97,9.4332]
[1752288984348,3.38,162.99,162.96,3.3]
[1752288985251,6.1331,162.98,162.96,3.3]
[1752288985452,3.38,162.97,162.96,3.3]
[1752288988455,3.38,162.97,162.95,6.1339]
[1752288988456,3.38,162.96,162.95,9.4339]
[1752288989452,3.38,162.96,162.95,3.3]
[1752288989856,3.38,162.96,162.95,9.4341]
[1752288993361,3.38,162.96,162.95,3.3]
[1752288994162,3.38,162.96,162.95,9.4341]
[1752288998264,6.1328,162.99,162.96,6.1337]
[1752288998466,3.38,162.98,162.97,3.3]
[1752289008978,3.38,162.98,162.97,9.4333]
[1752289023895,3.34,163.02,162.98,3.36]
[1752289024092,3.34,163.03,163.0,3.36]
[1752289024990,3.34,163.03,163.0,6.1319]
[1752289025190,3.34,163.03,163.01,3.36]
[1752289025490,3.34,163.03,163.02,3.36]
[1752289026696,3.34,163.03,163.02,9.4915]
[1752289030905,3.34,163.03,163.02,6.1315]
[1752289031201,533.38,163.05,163.04,9.4907]
[1752289032199,533.38,163.05,163.04,3.36]
[1752289034589,533.38,163.05,163.04,9.4907]
[1752289035201,177.48,163.06,163.05,9.6203]
[1752289035399,180.89,163.06,163.05,6.1303]
[1752289035602,180.89,163.06,163.05,9.6203]
[1752289036205,3.41,163.08,163.07,9.6196]
[1752289038905,180.21,163.09,163.07,6.1296]
[1752289039097,180.21,163.09,163.08,3.49]
[1752289046306,186.3388,163.09,163.08,3.49]
[1752289046506,3.41,163.08,163.05,3.49]
[1752289047004,3.41,163.06,163.05,3.49]
[1752289049809,3.41,163.05,163.04,3.53389437]
[1752289051818,9.5403,163.05,163.04,0.04389437]
[1752289052001,3.41,163.05,162.97,3.79292536]
[1752289052205,3.41,163.05,162.98,3.49]
[1752289052206,3.41,163.03,162.98,3.49]
[1752289052414,6.1316,163.02,162.99,6.1324]
[1752289052611,3.41,163.01,163.0,3.49]
[1752289052807,3.41,163.01,162.95,3.49]
[1752289053010,9.5422,163.01,162.98,6.1327]
[1752289053314,3.41,163.0,162.94,3.49]
[1752289053709,9.5423,163.0,162.97,6.133]
[1752289053907,3.41,163.0,162.94,3.49]
[1752289054210,3.4505797,163.0,162.94,3.49]
[1752289054707,3.4505797,163.0,162.97,6.1331]
[1752289054913,3.4505797,163.0,162.98,3.49]
[1752289056014,3.4505797,163.0,162.99,3.49]
[1752289056214,0.0405797,163.0,162.99,3.49]
[1752289056411,0.0405797,163.0,162.99,9.6226]
[1752289056618,0.0405797,163.0,162.99,6.1326]
[1752289056914,0.0405797,163.0,162.99,9.6226]
[1752289069421,3.5105797,163.0,162.98,3.39]
[1752289070119,3.5105797,163.0,162.98,9.523]
[1752289072125,3.5105797,163.0,162.99,6.1326]
[1752289076724,3.5105797,163.0,162.99,9.5226]
[1752289080528,3.5105797,163.0,162.98,9.5227]
[1752289081025,3.5105797,163.0,162.98,3.39]
[1752289081830,3.5105797,163.0,162.99,3.39]
[1752289082127,3.5105797,163.0,162.99,9.5226]
[1752289082823,3.5105797,163.0,162.99,6.1326]
[1752289083027,3.5105797,163.0,162.99,9.5226]
[1752289085332,5.93928513,163.0,162.97,3.39]
[1752289085533,3.47,162.99,162.97,3.39]
[1752289087132,3.47,162.99,162.98,6.1327]
[1752289087334,3.47,162.99,162.98,9.5227]
[1752289094230,3.5105797,163.0,162.99,9.5226]
[1752289094434,0.0405797,163.0,162.99,9.5226]
[1752289095032,3.5205797,163.0,162.99,9.5226]
[1752289113251,0.0405797,163.0,162.99,11.95059466]
[1752289113747,3.5205797,163.0,162.99,11.95059466]
[1752289113949,0.0405797,163.0,162.99,11.95059466]
[1752289125460,0.0405797,163.0,162.99,17.08697529]
[1752289126167,0.0405797,163.0,162.99,11.95059466]
[1752289130372,0.0405797,163.0,162.99,17.08620246]
[1752289133672,3.55,163.03,163.02,6.1315]
[1752289133874,3.55,163.03,163.02,9.4015]
[1752289140482,3.55,163.05,163.02,3.27]
[1752289140682,3.55,163.05,163.03,5.69722183]
[1752289140880,3.55,163.05,163.03,3.27]
[1752289142177,3.55,163.05,163.03,9.4008]
[1752289143682,3.55,163.04,163.0,5.69722183]
[1752289144085,3.55,163.04,163.0,2.42722183]
[1752289144287,3.55,163.04,163.01,3.27]
[1752289144689,3.55,163.04,163.02,6.1312]
[1752289145788,3.55,163.04,163.03,6.1311]
[1752289146485,6.1311,163.03,162.99,3.27]
[1752289146691,3.55,163.02,162.98,3.27]
[1752289146885,176.68,163.02,162.98,3.27]
[1752289147188,3.55,163.0,162.98,3.27]
[1752289147489,3.55,163.0,162.99,6.1323]
[1752289147986,3.55,163.0,162.98,9.4028]
[1752289148391,3.55,163.0,162.99,6.1326]
[1752289148583,3.55,163.0,162.99,9.4026]
[1752289153396,3.55,163.0,162.98,9.4028]
[1752289155398,3.55,163.0,162.99,6.1326]
[1752289155599,3.55,163.0,162.99,9.7126]
[1752289158404,3.55,163.0,162.98,9.7128]
[1752289160700,3.55,163.0,162.99,9.7126]
[1752289166006,3.55,163.0,162.99,3.58]
[1752289167007,3.55,163.0,162.99,9.7126]
[1752289169007,3.55,163.0,162.99,3.58]
[1752289170108,3.55,163.0,162.99,9.7126]
[1752289176019,3.27,163.02,163.01,9.7118]
[1752289176214,179.93,163.02,163.01,9.7118]
[1752289178619,179.93,163.02,163.01,3.58]
[1752289193339,3.49,163.0,162.98,3.35]
[1752289193736,3.49,163.0,162.98,9.4829]
[1752289194138,3.49,163.0,162.99,3.35]
[1752289194344,3.49,162.99,162.98,3.35]
[1752289195840,9.6226,162.99,162.98,3.35]
[1752289198042,6.1326,162.99,162.97,3.35]
[1752289198243,3.49,162.98,162.97,3.35]
[1752289199038,9.623,162.98,162.97,3.35]
[1752289200140,3.49,162.98,162.94,7.59088974]
[1752289200340,3.49,162.97,162.95,3.35]
[1752289200536,176.6,162.97,162.95,3.35]
[1752289200744,9.6237,162.96,162.95,3.35]
[1752289202339,186.2235,162.97,162.95,5.77982568]
[1752289202544,186.2235,162.97,162.95,3.35]
[1752289202545,182.7335,162.97,162.95,3.35]
[1752289202742,180.09,162.97,162.96,3.35]
[1752289203144,186.2233,162.97,162.96,3.35]
[1752289203843,9.6241,162.95,162.94,3.3892365]
[1752289204745,9.6241,162.95,162.94,0.0392365]
[1752289204940,12.05399037,162.95,162.94,0.0392365]
[1752289205244,9.6248,162.93,162.92,3.35]
[1752289218454,3.26,162.94,162.92,2.43045669]
[1752289218649,3.26,162.94,162.93,3.57]
[1752289219255,9.3945,162.94,162.93,3.57]
[1752289225964,6.1348,162.93,162.92,2.43045669]
[1752289226159,9.3948,162.93,162.92,3.57]
[1752289227665,186.0148,162.93,162.92,3.57]
[1752289229265,3.26,162.9,162.86,7.59292685]
[1752289229466,3.26,162.9,162.85,2.43045669]
[1752289229666,3.26,162.9,162.86,3.57]
[1752289229964,176.65902918,162.89,162.86,3.57]
[1752289230155,3.26,162.88,162.86,3.57]
[1752289231565,6.1371,162.87,162.86,3.57]
[1752289231766,3.26,162.88,162.86,3.57]
[1752289231966,9.397,162.88,162.86,3.57]
[1752289232267,3.26,162.88,162.86,3.57]
[1752289233266,9.3971,162.87,162.86,3.57]
[1752289237167,9.3979,162.85,162.84,6.00045669]
[1752289237569,9.3979,162.85,162.84,3.57]
[1752289238662,3.26,162.85,162.84,3.57]
[1752289248381,3.42,162.87,162.85,3.39]
[1752289249479,3.42,162.87,162.84,2.43045669]
[1752289249783,3.42,162.87,162.86,3.39]
[1752289251687,3.42,162.87,162.86,9.5275]
[1752289253188,3.42,162.87,162.86,3.39]
[1752289255794,3.42,162.87,162.86,9.5275]
[1752289257392,3.42,162.88,162.86,3.39]
[1752289257595,3.45902918,162.89,162.87,2.43045669]
[1752289257793,3.45902918,162.89,162.88,3.39]
[1752289259796,3.45902918,162.89,162.88,9.5267]
[1752289260396,3.45902918,162.89,162.88,3.39]
[1752289270303,3.45902918,162.89,162.88,9.5267]
[1752289270701,0.03902918,162.89,162.88,9.5267]
[1752289270901,0.03902918,162.89,162.88,11.95715669]
[1752289271706,3.42,162.91,162.9,9.526]
[1752289272204,3.42,162.93,162.91,6.1354]
[1752289272500,3.42,162.93,162.92,3.39]
[1752289273404,3.42,162.95,162.93,3.39]
[1752289273709,3.42,162.94,162.93,3.39]
[1752289274210,3.42,162.94,162.93,9.5247]
[1752289281413,176.58,162.96,162.92,2.46942693]
[1752289281414,3.32,162.95,162.94,6.1342]
[1752289282613,3.32,162.95,162.94,9.3942]
[1752289282815,179.9,162.96,162.95,6.1341]
[1752289283114,179.9,162.96,162.95,9.3941]
[1752289289816,176.58,162.96,162.95,9.3941]
[1752289290114,179.9,162.96,162.95,9.3941]
[1752289293118,176.58,162.96,162.95,9.3941]
[1752289293616,3.36484797,162.97,162.95,3.26]
[1752289293815,0.04484797,162.97,162.96,11.82415669]
[1752289294321,3.36484797,162.97,162.96,11.82415669]
[1752289295216,3.36484797,162.97,162.96,9.3937]
[1752289296618,0.04484797,162.97,162.96,9.3937]
[1752289296825,3.36484797,162.97,162.96,9.3937]
[1752289300619,0.04484797,162.97,162.96,9.3937]
[1752289301823,3.36484797,162.97,162.96,9.3937]
[1752289304724,0.04484797,162.97,162.96,9.3937]
[1752289306228,3.37484797,162.97,162.96,9.3937]
[1752289307030,0.04484797,162.97,162.96,9.3937]
[1752289307930,3.37484797,162.97,162.96,9.3937]
[1752289308636,0.04484797,162.97,162.96,9.3937]
[1752289314627,3.33,162.99,162.95,2.43045669]
[1752289314628,176.44,163.0,162.99,6.1326]
[1752289314837,179.77,163.0,162.99,9.5726]
[1752289315033,3.33,163.0,162.99,9.5726]
[1752289317236,3.36873269,163.01,163.0,9.5722]
[1752289318437,0.03873269,163.01,163.0,12.00265669]
[1752289321338,3.36873269,163.01,163.0,12.00265669]
[1752289324437,0.03873269,163.01,163.0,12.00265669]
[1752289325649,3.33,163.03,163.02,6.1315]
[1752289325851,3.33,163.03,163.02,9.5715]
[1752289329250,5.76045669,163.03,162.99,3.44]
[1752289329444,3.33,163.01,162.98,5.91670922]
[1752289329843,5.76045669,163.01,162.98,3.48625253]
[1752289330152,3.33,163.0,162.99,3.44]
[1752289330351,3.33,163.0,162.99,9.5726]
[1752289331753,3.33,163.0,162.99,6.1326]
[1752289331953,3.33,163.0,162.98,9.61905253]
[1752289332248,3.33,163.0,162.98,3.48625253]
[1752289332952,3.33,163.0,162.99,6.1326]
[1752289333157,3.33,163.0,162.99,9.5726]
[1752289342952,179.67,163.02,163.01,6.1318]
[1752289343156,179.67,163.02,163.01,9.5918]
[1752289344657,3.33,163.02,163.01,9.5918]
[1752289344854,176.34,163.06,163.01,9.5918]
[1752289344855,176.34,163.06,163.03,6.1309]
[1752289345052,176.34,163.06,163.04,3.46]
[1752289345248,176.34,163.06,163.0,2.43045669]
[1752289345450,3.33,163.05,163.03,3.50594999]
[1752289345854,3.33,163.05,163.03,6.17684999]
[1752289347555,3.33,163.05,163.03,9.63684999]
[1752289348859,3.33,163.05,163.04,6.1307]
[1752289349060,3.33,163.05,163.04,12.02115669]
[1752289351363,176.34,163.06,163.05,9.5903]
[1752289351563,3.33,163.07,163.06,3.46]
[1752289351959,3.33,163.07,163.06,12.02045669]
[1752289353861,3.33,163.08,163.07,6.1293]
[1752289354565,3.33,163.08,163.07,9.5893]
[1752289355164,179.63,163.09,163.08,9.5892]
[1752289355365,179.63,163.09,163.08,12.01965669]
[1752289356867,3.33,163.09,163.08,12.01965669]
[1752289360666,3.33,163.1,163.09,3.46]
[1752289360971,3.33,163.1,163.09,5.89045669]
[1752289361470,3.33,163.1,163.09,12.01925669]
[1752289362968,176.28,163.12,163.11,6.1281]
[1752289363270,176.28,163.12,163.11,9.5881]
[1752289363571,179.61,163.12,163.11,9.5881]
[1752289368876,3.33,163.12,163.11,9.5881]
[1752289369076,179.55,163.12,163.11,9.5881]
[1752289369578,179.55,163.12,163.11,12.01855669]
[1752289370578,179.55,163.12,163.11,9.5881]
[1752289370776,3.31,163.11,163.09,3.51]
[1752289371476,3.31,163.11,163.1,6.1285]
[1752289371875,3.31,163.11,163.1,9.6385]
[1752289372473,3.31,163.11,163.1,3.51]
[1752289372678,3.31,163.11,163.09,6.1288]
[1752289372973,3.31,163.11,163.09,9.6388]
[1752289373180,3.31,163.11,163.1,3.51]
[1752289373573,3.31,163.11,163.1,9.6385]
[1752289387782,3.31,163.11,163.07,0.04510199]
[1752289387985,3.31,163.09,163.07,3.55510199]
[1752289388189,3.31,163.08,163.07,3.55510199]
[1752289388589,3.31,163.08,163.07,9.68460199]
[1752289390378,179.47,163.09,163.08,9.6392]
[1752289396088,176.16,163.09,163.08,9.6392]
[1752289396496,179.71,163.12,163.11,6.1281]
[1752289396687,179.71,163.12,163.11,9.6581]
[1752289397490,176.16,163.12,163.11,12.08407024]
[1752289397693,3.55,163.15,163.12,3.53]
[1752289397897,176.16,163.16,163.15,3.53]
[1752289398098,176.16,163.16,163.15,5.95351067]
[1752289398291,179.71,163.16,163.15,5.95351067]
[1752289398495,179.71,163.16,163.15,12.07981067]
[1752289398694,3.55,163.15,163.14,0.03876669]
[1752289399895,3.55,163.15,163.14,6.16576669]
[1752289400100,3.55,163.15,163.14,9.69576669]
[1752289403298,176.16,163.16,163.15,6.1266]
[1752289403593,176.14,163.19,163.15,3.53]
[1752289403798,3.55,163.17,163.15,3.53]
[1752289405195,3.55,163.17,163.16,9.6559]
[1752289405390,3.55,163.17,163.14,3.56876669]
[1752289405800,3.55,163.17,163.15,3.53]
[1752289407101,3.55,163.17,163.15,9.6565]
[1752289408003,6.1258,163.17,163.14,6.16556669]
[1752289408208,3.55,163.16,163.14,9.69556669]
[1752289408498,3.55,163.16,163.14,3.56876669]
[1752289409000,3.55,163.16,163.15,9.6566]
[1752289413202,176.12,163.17,163.16,6.1262]
[1752289413404,179.67,163.17,163.16,9.6562]
[1752289418503,3.55,163.16,163.15,6.1265]
[1752289418810,3.55,163.16,163.15,9.6565]
[1752289421805,534.74934921,163.23,163.15,3.53]
[1752289422002,3.55,163.18,163.15,3.53]
[1752289422402,3.55,163.18,163.17,6.1258]
[1752289422598,3.55,163.18,163.17,9.6558]
[1752289424409,182.2042,163.22,163.19,6.125]
[1752289424708,3.55,163.2,163.19,9.655]
[1752289425102,3.55,163.2,163.19,9.69594769]
[1752289426209,3.55,163.2,163.19,0.04094769]
[1752289426413,3.55,163.2,163.14,3.3]
[1752289427206,6.1253,163.19,163.16,6.126]
[1752289427410,176.06,163.18,163.16,6.126]
[1752289427610,3.44,163.17,163.16,6.126]
[1752289430010,3.44,163.17,163.16,9.426]
[1752289435112,3.44,163.17,163.16,6.126]
[1752289435314,3.44,163.17,163.15,0.04110438]
[1752289435817,6.1262,163.16,163.15,0.04110438]
[1752289436007,9.5662,163.16,163.15,0.04110438]
[1752289449730,6.1266,163.15,163.12,6.1275]
[1752289449928,3.44,163.13,163.12,9.4275]
[1752289453733,3.44,163.13,163.12,3.3]
[1752289453929,176.06,163.14,163.12,2.42432867]
[1752289454233,3.44,163.16,163.13,3.3]